Cogmind - Beta 16.1 @@@ ROGUE MODE // 2026.03.01 @ 15:31:38 Player: Kaisercar Result: Destroyed by EMP Trap Performance ------------- Evolutions (0) 0 Regions Visited (1) 200 Robots Destroyed (30) 150 Value Destroyed (565) 565 Prototype IDs (0) 0 Alien Tech Used (0) 0 Bonus (0) 0 TOTAL SCORE: 915 Bonus ------- None Cogmind --------- Core Integrity 0/250 Matter 289/300 Energy 96/100 System Corruption 0% Temperature Cool (2) Movement Walking (190) Ox1 Location -10/Materials Parts ------- > --- POWER (1) -------- (None) > --- PROPULSION (2) --- Aluminum Leg Aluminum Leg > --- UTILITY (2) ------ Heat Sink Large Storage Unit > --- WEAPON (2) ------- Spread Laser Assault Rifle > --- INVENTORY (15) --- Aluminum Leg Aluminum Leg Wheel Improved Heat Sink Large Battery (200) Large Matter Pod (32) Improved Terrain Scanner Seismic Detector Spread Laser Assault Rifle Light Assault Rifle Light Cannon Grenade Launcher Grenade Launcher Hammer Peak State ------------ > --- POWER ------------ Improved Ion Engine > --- PROPULSION ------- Aluminum Leg Aluminum Leg > --- UTILITY ---------- Improved Heat Sink Large Storage Unit > --- WEAPON ----------- Spread Laser Spread Laser > --- INVENTORY -------- Aluminum Leg Wheel Heat Sink Large Battery Medium Matter Pod Improved Terrain Scanner Seismic Detector Assault Rifle Assault Rifle Grenade Launcher Grenade Launcher [Rating: 13] Favorites ----------- Power Improved Ion Engine Engine Improved Ion Engine Propulsion Aluminum Leg Treads Light Treads Leg Aluminum Leg Utility Large Storage Unit Device Seismic Detector Storage Large Storage Unit Weapon Assault Rifle Energy Gun Spread Laser Ballistic Gun Assault Rifle Launcher Grenade Launcher Build | -11 -10 ------- Run | Yrd Mat Slots Evolved . | . . Power . | . . Propulsion . | . . Utility . | . . Weapon . | . . Parts Attached 24 | 9 15 Power 3 | 1 2 Engine 3 | 1 2 Core . | . . Reactor . | . . Propulsion 8 | 4 4 Treads 2 | 2 . Leg 6 | 2 4 Wheel . | . . Hover . | . . Flight . | . . Utility 6 | 2 4 Device 3 | 1 2 Storage 3 | 1 2 Processor . | . . Hackware . | . . Protection . | . . Artifact . | . . Weapon 7 | 2 5 Energy Gun 3 | 1 2 Energy Cannon . | . . Ballistic Gun 2 | 1 1 Ballistic Cannon . | . . Launcher 2 | . 2 Special Weapon . | . . Impact Weapon . | . . Slashing Weapon . | . . Piercing Weapon . | . . Special Melee Weapon . | . . Unidentified Prototypes . | . . Parts Lost 2 | . 2 Power 2 | . 2 Propulsion . | . . Utility . | . . Weapon . | . . Highest Loss Streak 1 | . 1 To Critical Strikes . | . . Average Backups 10 | 5 11 Power . | . . Propulsion 2 | 2 2 Utility 3 | . 3 Weapon 4 | 1 4 Tool/Special . | . . Unused Backups 14 | . 14 Power 1 | . 1 Propulsion 3 | . 3 Utility 6 | . 6 Weapon 4 | . 4 Tool/Special . | . . Average Slot Usage (%) 99 | . 99 Engine 13 | . 13 Leg 28 | . 28 Device 14 | . 14 Storage 14 | . 14 Energy Gun 14 | . 14 Ballistic Gun 13 | . 13 Peak Build Rating 13 | 8 13 Average Rating 9 | 5 10 On Entrance 4 | . 8 Avg Prop Armor Cover (%) . | . . Naked Turns . | . . Heaviest Build 53 | 15 53 Greatest Support 40 | 40 20 Greatest Overweight (x) 2 | . 2 Average Overweight (x) . | . . Largest Inventory Capacity 20 | 8 20 Average Capacity 12 | 7 12 Most Carried 15 | 8 15 Average Carried 10 | 5 11 Final Capacity 15 | 8 15 Final Carried 15 | 8 15 Class Distribution -------------------- 100% | Mutant Dominant Class ---------------- Mutant | -10/Materials Resources | -11 -10 ----------- Run | Yrd Mat Matter Collected 847 | 317 530 Remotely . | . . Salvage Created 729 | 178 551 Parts 52 | 16 36 Haulers Intercepted 2 | . 2 Recyclers Shooed 1 | . 1 Parts Field Recycled . | . . Retrieved Matter . | . . Parts Self-Destructed . | . . Prevented . | . . Parts Restored . | . . Kills | -11 -10 ------- Run | Yrd Mat Combat Hostiles Destroyed 17 | . 17 Guns 13 | . 13 AOE 4 | . 4 Classes Destroyed 8 | 3 5 Worker 3 | 1 2 Tunneler 3 | 3 . Hauler 2 | . 2 Recycler 1 | 1 . Operator 2 | . 2 Watcher 2 | . 2 Swarmer 6 | . 6 Grunt 11 | . 11 Best Kill Streak 6 | 3 6 Combat Bots Only 4 | . 4 Max Kills in Single Turn 3 | 1 3 Gunslinging 1 | . 1 Exploded 2 | . 2 Melee . | . . Uniques/NPCs Destroyed . | . . Combat | -11 -10 -------- Run | Yrd Mat Hostile Shots Fired 80 | . 80 Missed 28 | . 28 Hits 52 | . 52 Projectile 52 | . 52 Damage Taken 782 | . 782 Core 259 | . 259 Absorbed by Shields . | . . Core Remaining (%) 100 | 100 . Volleys Fired 62 | 9 53 Largest 2 | 2 2 Hottest 130 | 60 130 Shots Fired 116 | 18 98 Gun 112 | 18 94 Cannon . | . . Launcher 4 | . 4 Special . | . . Kinetic 52 | 9 43 Thermal 51 | . 51 Explosive 4 | . 4 Electromagnetic 9 | 9 . Robot Hit Streak 18 | 3 18 Robot Miss Streak 11 | 1 11 Penetration Max . | . . Secondary Targets 2 | . 2 Max Gunslinging Chain 1 | . 1 Shots Hit Robots 83 | 9 74 Core Hits 80 | 5 75 Critical Kills . | . . Critical Parts Destroyed . | . . Critical Strikes . | . . Melee Attacks . | . . Impact . | . . Slashing . | . . Piercing . | . . Sneak Attacks . | . . Combat Hostiles . | . . Follow-up Attacks . | . . Damage Inflicted 1328 | 123 1205 Guns 1097 | 123 974 Cannons . | . . Explosions 231 | . 231 Melee . | . . Ramming . | . . Kinetic 376 | 68 308 Thermal 666 | . 666 Explosive 231 | . 231 Electromagnetic 55 | 55 . Impact . | . . Slashing . | . . Piercing . | . . Highest Corruption . | . . Average Corruption . | . . Corruption Purged . | . . Corruption Blocked . | . . Overload Shots . | . . Overflow Damage 61 | . 61 Projectiles . | . . Explosions 61 | . 61 Melee . | . . Knockbacks . | . . Impact . | . . Kinetic . | . . Secondary . | . . Self-Inflicted Damage 227 | . 227 Shots 2 | . 2 Rammed . | . . Targets Rammed . | . . Kicked . | . . Crushed . | . . Highest Temperature 240 | . 240 Average Temperature 63 | . 63 Received Heat Transfer 225 | . 225 Siege Activations . | . . Martial Activations . | . . Shielding Activations . | . . Robots Disrupted . | . . Combat Hostiles . | . . Robots Corrupted . | . . Combat Hostiles . | . . Parts Fried . | . . Impact Corruptions . | . . Robots Melted . | . . Combat Hostiles . | . . Parts Melted . | . . Heat Transferred 825 | . 825 Parts Sabotaged . | . . Parts Stolen . | . . Parts Stripped . | . . Power Chain Reactions . | . . Alert | -11 -10 ------- Run | Yrd Mat Maximum Alert Level 1 | . 1 Low Security (%) 96 | 100 96 Level 1 3 | . 3 Level 2 . | . . Level 3 . | . . Level 4 . | . . Level 5 . | . . High Security . | . . Max Security . | . . Peak Influence 236 | 5 236 Initial . | . . Average 67 | 1 77 Influence Increases 703 | 25 678 Destroy 0b10 Robot/C 340 | . 340 Destroy 0b10 Robot/NC 65 | 25 40 Destroy Leader 88 | . 88 Select Force Hacks 60 | . 60 Disable Machine 30 | . 30 Destroy Structure 75 | . 75 Lose Combat Pursuer 45 | . 45 Influence Decreases 545 | 25 520 Time Decay 375 | 25 350 Lost Part 20 | . 20 Purge Threat 150 | . 150 Squads Dispatched 5 | . 5 Investigation 3 | . 3 Extermination . | . . Reinforcement 2 | . 2 Assault . | . . Garrison . | . . Intercept . | . . Searches Triggered . | . . Construction Impeded . | . . Haulers Reinforced . | . . Active Scanning Responses . | . . Cargo Convoy Interrupts . | . . Stealth | -11 -10 --------- Run | Yrd Mat Distress Signals 3 | . 3 Communications Jammed . | . . Distress Signals . | . . Times Spotted 26 | . 26 Peak Tracking Total 4 | . 4 Tactical Retreats 2 | . 2 Traps | -11 -10 ------- Run | Yrd Mat Traps Triggered 2 | . 2 Indirectly . | . . Trap Hack Attempts . | . . Triggered . | . . Disarmed . | . . Reprogrammed . | . . Reused . | . . Traps Extracted . | . . Installed . | . . Triggered . | . . Machines | -11 -10 ---------- Run | Yrd Mat Machines Disabled 2 | . 2 Max in Single Turn 2 | . 2 Machines Repaired . | . . Machines Dismantled . | . . Machines Sabotaged . | . . Overloaded Fab Kills . | . . Hacking | -11 -10 --------- Run | Yrd Mat Machines Accessed 7 | . 7 Terminals 5 | . 5 Fabricators . | . . Repair Stations . | . . Recycling Units 2 | . 2 Scanalyzers . | . . Garrison Access . | . . Total Hacks 13 | . 13 Successful 7 | . 7 Failed 6 | . 6 Catastrophic . | . . Database Lockouts . | . . Manual 10 | . 10 Terminals 11 | . 11 Fabricators . | . . Repair Stations . | . . Recycling Units 2 | . 2 Scanalyzers . | . . Garrison Access . | . . Terminal Hacks 2 | . 2 Unreport Threat 1 | . 1 Zone Layout 1 | . 1 Fabricator Hacks . | . . Repair Station Hacks . | . . Recycling Unit Hacks . | . . Scanalyzer . | . . Garrison Access Hacks . | . . Unauthorized Hacks 5 | . 5 Terminals 3 | . 3 Track 1 | . 1 Botnet 2 | . 2 Fabricators . | . . Repair Stations . | . . Recycling Units 2 | . 2 Tunnel 2 | . 2 Scanalyzers . | . . Garrison Access . | . . Data Cores Recovered . | . . Used . | . . Hacking Detections 5 | . 5 Full Trace Events . | . . Feedback Events . | . . Feedback Blocked . | . . Robot Schematics Acquired . | . . Robots Built . | . . Authchips . | . . Time . | . . Total Robot Build Rating . | . . Part Schematics Acquired . | . . Parts Built . | . . Authchips . | . . Time . | . . Total Part Build Rating . | . . Part Studies Acquired . | . . Parts Repaired . | . . Time . | . . Parts Recycled . | . . Recycled Matter . | . . Retrieved Matter . | . . Retrieved Components . | . . Parts Scanalyzed . | . . Part Schematics Acquired . | . . Parts Damaged . | . . Bothacking | -11 -10 ------------ Run | Yrd Mat Used RIF Installer . | . . Robots Hacked . | . . Non-combat . | . . Combat . | . . Robot Hacks Applied . | . . Relay Couplers Released . | . . Fabnet Peak Effective % . | . . Robots Rewired . | . . Allies Hacked . | . . Hacks Repelled . | . . Allies | -11 -10 -------- Run | Yrd Mat Total Allies . | . . Largest Group . | . . Highest-Rated Group . | . . Highest-Rated Ally . | . . Total Orders . | . . Ally Attacks . | . . Total Damage . | . . Kills . | . . Allies Corrupted . | . . Allies Melted . | . . Intel | -11 -10 ------- Run | Yrd Mat Active Infowar (turns) 702 | 18 684 Seismic 702 | 18 684 Robot Analysis Total . | . . Derelict Logs Recovered . | . . Drone Launches . | . . Drone Recoveries . | . . Exploration | -11 -10 ------------- Run | Yrd Mat Turns Passed 1356 | 189 1167 Spaces Moved 667 | 110 557 Core 11 | 11 . Treads 39 | 39 . Legs 617 | 60 557 Wheels . | . . Hover . | . . Flight . | . . Fastest Speed 50 | 50 120 Average Speed 153 | 127 158 Slowest Speed 260 | 160 260 Overloaded Moves . | . . Propulsion Burnouts . | . . Robots Hopped . | . . Potential Cave-ins . | . . Cave-ins Triggered . | . . Exploration Rate (%) 46 | 5 88 Regions Visited 1 Branch Regions . Pre-discovered Areas 2 | . 2 Known Exits Taken . | . . Unknown Exits Taken 1 | 1 . Scrap Searched . | . . Spaces Dug 6 | . 6 Terrain Destroyed 75 | . 75 Melee . | . . Projectile . | . . AOE 75 | . 75 Terrain Rammed . | . . Walls Destroyed . | . . Machines Disabled . | . . Actions | -11 -10 --------- Run | Yrd Mat Total 883 | 137 746 Wait 80 | 1 79 Move 666 | 109 557 Hop . | . . Pick Up 24 | 9 15 Fast Attach 8 | 6 2 Attach 2 | 1 1 Detach 1 | . 1 Swap 24 | 2 22 Drop 16 | . 16 Fire 62 | 9 53 Melee . | . . Ram . | . . Kick . | . . Crush . | . . Escape Stasis . | . . Rewire . | . . Trap . | . . Miscellaneous . | . . Route ------- -11/Scrapyard -10/Materials (discovered 3 exits: [*Mat x3]) History --------- Turn | Location | Event 5 | -11/Scrapyard | Discovered new exit (range 15) 190 | -11/Scrapyard | Entered Materials 315 | -10/Materials | Build established: Mutant 485 | -10/Materials | Discovered new exit (range 16) 818 | -10/Materials | Discovered new exit (range 8) 1224 | -10/Materials | Discovered new exit (range 12) 1327 | -10/Materials | Core integrity fell below 50% 1327 | -10/Materials | Core integrity fell below 20% 1357 | -10/Materials | Destroyed by EMP Trap Last Messages --------------- 01230_ Connecting with Terminal... >>Trojan(Botnet) Trojan loaded successfully. Testing... Terminal linked with 1 system. Awaiting botnet instructions. 01236_ T-07 Excavator is excavating. 01254_ Acquired Hammer. 01324_ O-16 Technician destroyed. 01326_ Fusion Modulator explodes. 01326_ Imp. Ion Engine destroyed. 01326_ Destroyed Imp. Ion Engine. 01326_ Fusion Modulator explodes. 01326_ K-01 Serf cleans the Processing Tank. 01327_ K-01 Serf cleans the Nuclear Reactor. 01329_ K-01 Serf cleans the Processing Tank. 01333_ K-01 Serf collects debris. 01357_ Triggered EMP Trap. 01357_ A bubble of electromagnetic force engulfs the area. Map ----- +----------------------------------------------------+ | = = !%! # */ !=g T #????????????? | | =!! # ##### #????????????? | | ! ########???#w [#????????????? | | ############+##########???????## ##????????????? | | ########?# % [####???????????# #?????????????? | | ?????????#"""%= #???#######????# #?????????????? | | ?????????#""" #???# #????# #?????????????? | | ?????????#""" #???# #????# ####### # ??? | | ?????????#""" #???# ###### / "?? | | ?????????# #???# """ + #???? | | ?????????########???# """ ###### = #???? | | ????????????????????# """ #######+### ######???? | | ????????????????????# # % # #????????? | | ????????????????????# """ # # #????????? | | ????????????????????# """ # # #????????? | | ????????????????????# """ # ! # ########## | | ????????????????????# ? # """ !! # # | | ???????????????????????? =# """ # !# """ ""?? | | ?????????????????????#??### """ + =+ """ """ | | ?????????????????????# ???# ! # # """ """ | | ???????????????# ##### ???########### # | | ???????????????? ??# # # | | ??????????????????# ##" """ # # | | ??????????????????# ##T """ # # | | #############????## ##" """ " "#"### | | @/ """ # ##? | | ##### #######????##### ## """ " """## | | #??# #??????######### ## ; # | | #??# #??????# ## ## ; # | | #?## ######?# ## ##########;; # | | #?# ##T### ## #????????##"k # | | #?# # ## #?????????#" # | | #?# [! # ## #?????????#"" ""### | | #?# = [! # ## ##????#######"" # | | #?## [[! ""# # #????# !# # | | ##### Y"# # #????# """ # ! + | | * ""# + " #????# """ # # | | = + # #????# """*#%= # | | # # !#????# =+ """ #? | | ######""T""### ## ##????#########[! """ #? | | #????#"""""#?# ## #?????????????# """ #? | | #????#######?######### #?????????????# """ #? | | #????????????? ?# #?????????????# #? | | #???????????? """?# #?????????????# #? | | #???????????# """ # #???????####### """ #? | | #########???# """ # #???????# ## """ ## | | #???# + #???????# # """ "" | | """ "" #???# """ # #???????# # """ T" | | """ """#???# """ # #???????#/ # "" | | """ R"#???? """?# #???????# + # | +----------------------------------------------------+ Best States ------------- Heat Dissipation 39 Energy Generation 12 Energy Capacity 265 Matter Stores 300 Matter Capacity 300 Sight Range 16 Terrain Scan Density 10 Evasion (%) 55 Recoil Reduction 2 Item Schematics ----------------- None Robot Schematics ------------------ None Fabricated ------------ Nothing Repaired ---------- Nothing Studied --------- None Alien Tech Used ----------------- None Achievements -------------- None Challenges ------------ None Game ------ Seed VampiricCentriumShredder Manual? 0 Play Time 00:11:14 Cumulative 104.6 hours Start 2026.03.01 @ 15:23:17 End 2026.03.01 @ 15:31:38 Sessions 1 Manual Loads 0 Difficulty Rogue Special Mode None Game No. 132 Rogue 57 Adventurer 75 Explorer 0 Win Type - Total 4 Types 4/0/0/0/0/0/0/0/0/0 Lore% 52 Gallery% 50 Achievement% 41 Wizard Run 0 Options --------- Layout 2 ASCII 0 Keyboard 0 Movement Numpad Keybinds 0 Fullscreen 2 Font 24/Smallcaps Map View 50x44 Zoom Use 0% Tactical HUD 1 Map Filters NONE Filters NONE Steam 1 RUN: 5d6ab04f-3d27-4b17-ad1d-55c29380fbc5